fUST/lending_fUST_20250624
["ID","MTS","AMOUNT","RATE_DAILY","PERIOD"]
[367226414,1750707689070,-1281.1949811,0.00019252,2]
[367226415,1750707689239,-1281.1949811,0.00019252,2]
[367226416,1750707689270,-1281.1949811,0.00019252,2]
[367226417,1750707689299,-1281.1949811,0.00019252,2]
[367226418,1750707689517,-1281.1949811,0.00019252,2]
[367226419,1750707689547,-1281.1949811,0.00019252,2]
[367226420,1750707689576,-1281.1949811,0.00019252,2]
[367226421,1750707689606,-1281.1949811,0.00019252,2]
[367226422,1750707689727,-1409.31447919,0.00019252,2]
[367226423,1750707689758,-1409.31447919,0.00019252,2]
[367226424,1750707689788,-1409.31447919,0.00019252,2]
[367226425,1750707689818,-834.79864567,0.00019252,2]
[367226426,1750707690071,-574.51583352,0.00019252,2]
[367226427,1750707690104,-1409.31447919,0.00019252,2]
[367226428,1750707690134,-1409.31447919,0.00019252,2]
[367226429,1750707690162,-460.0,0.00019252,2]
[367226430,1750707691590,-3224.80829882,0.00019253,2]
[367226431,1750707691811,-10700.0,0.00019253,2]
[367226432,1750707691824,-10700.0,0.00019253,2]
[367226433,1750707691842,-10700.0,0.00019253,2]
[367226434,1750707691857,-2994.67533512,0.00019253,2]
[367226435,1750707691866,-460.0,0.00019253,2]
[367226436,1750707691875,-460.0,0.00019253,2]
[367226437,1750707691885,-460.0,0.00019253,2]
[367226438,1750707691895,-460.0,0.00019253,2]
[367226439,1750707691904,-460.0,0.00019253,2]
[367226440,1750707691914,-460.0,0.00019253,2]
[367226441,1750707691923,-460.0,0.00019253,2]
[367226442,1750707691932,-460.0,0.00019253,2]
[367226443,1750707691941,-460.0,0.00019253,2]
[367226444,1750707691954,-460.0,0.00019253,2]
[367226445,1750707691963,-460.0,0.00019253,2]
[367226446,1750707691973,-460.0,0.00019253,2]
[367226447,1750707691983,-460.0,0.00019253,2]
[367226448,1750707691992,-460.0,0.00019253,2]
[367226449,1750707692002,-460.0,0.00019253,2]
[367226450,1750707692011,-460.0,0.00019253,2]
[367226451,1750707692022,-345.32466488,0.00019253,2]
[367226452,1750707692037,-114.67533512,0.00019253,2]
[367226453,1750707692046,-460.0,0.00019253,2]
[367226454,1750707692057,-431.16236284,0.00019253,2]
[367226455,1750707692066,-460.0,0.00019253,2]
[367226456,1750707692075,-2311.83,0.00019253,2]
[367226457,1750707692084,-460.0,0.00019253,2]
[367226458,1750707692095,-460.0,0.00019253,2]
[367226459,1750707692105,-585.87,0.00019253,2]
[367226460,1750707692115,-460.0,0.00019254,2]
[367226461,1750707692125,-460.0,0.00019254,2]
[367226462,1750707692135,-460.0,0.00019254,2]
[367226463,1750707692145,-460.0,0.00019254,2]
[367226464,1750707692155,-460.0,0.00019254,2]
[367226465,1750707692164,-460.0,0.00019255,2]
[367226466,1750707692173,-460.0,0.00019255,2]
[367226467,1750707692183,-460.0,0.00019255,2]
[367226468,1750707692192,-460.0,0.00019256,2]
[367226469,1750707692202,-460.0,0.00019256,2]
[367226470,1750707692211,-460.0,0.00019256,2]
[367226471,1750707692220,-356.46230204,0.00019256,2]
[367226472,1750707692234,-103.53769796,0.00019256,2]
[367226473,1750707692244,-460.0,0.00019256,2]
[367226474,1750707692253,-542.18277472,0.00019256,2]
[367226475,1750707692262,-460.0,0.00019256,2]
[367226476,1750707692272,-460.0,0.00019256,2]
[367226477,1750707692281,-460.0,0.00019256,2]
[367226478,1750707692292,-460.0,0.00019256,2]
[367226479,1750707692301,-460.0,0.00019256,2]
[367226480,1750707692310,-460.0,0.00019256,2]
[367226481,1750707692320,-460.0,0.00019256,2]
[367226482,1750707692329,-460.0,0.00019256,2]
[367226483,1750707692338,-460.0,0.00019256,2]
[367226484,1750707692350,-460.0,0.00019256,2]
[367226485,1750707692359,-460.0,0.00019256,2]
[367226486,1750707692368,-2598.55,0.00019256,2]
[367226487,1750707692378,-460.0,0.00019256,2]
[367226488,1750707692387,-460.0,0.00019256,2]
[367226489,1750707692396,-1015.72952732,0.00019256,2]
[367226490,1750707692447,-1388.44047268,0.00019256,2]
[367226491,1750707692456,-765.29,0.00019256,2]
[367226492,1750707692466,-460.0,0.00019256,2]
[367226493,1750707692475,-1472.93,0.00019256,2]
[367226494,1750707692484,-523.36,0.00019256,2]
[367226495,1750707692493,-460.0,0.00019256,2]
[367226496,1750707692503,-460.0,0.00019256,2]
[367226497,1750707692512,-460.0,0.00019256,2]
[367226498,1750707692521,-460.0,0.00019256,2]
[367226499,1750707692530,-1594.1,0.00019256,2]
[367226500,1750707692539,-1918.76,0.00019256,2]
[367226501,1750707692547,-503.15,0.00019256,2]
[367226502,1750707692556,-233.96952732,0.00019256,2]
[367226503,1750707692593,-226.03047268,0.00019256,2]
[367226504,1750707692605,-1247.79,0.00019256,2]
[367226505,1750707692619,-460.0,0.00019256,2]
[367226506,1750707692629,-687.05,0.00019256,2]
[367226507,1750707692637,-460.0,0.00019257,2]
[367226508,1750707692647,-460.0,0.00019257,2]
[367226509,1750707692658,-460.0,0.00019257,2]
[367226510,1750707692668,-460.0,0.00019257,2]
[367226511,1750707692678,-460.0,0.00019257,2]
[367226512,1750707692688,-460.0,0.00019257,2]
[367226513,1750707692699,-460.0,0.00019257,2]
[367226514,1750707692708,-460.0,0.00019257,2]
[367226515,1750707692719,-460.0,0.00019257,2]
[367226516,1750707692728,-460.0,0.00019257,2]
[367226517,1750707692739,-460.0,0.00019257,2]
[367226518,1750707692749,-460.0,0.00019257,2]
[367226519,1750707692760,-408.7478443,0.00019257,2]
[367226520,1750707692770,-460.0,0.00019257,2]
[367226521,1750707692780,-460.0,0.00019257,2]
[367226522,1750707692791,-460.0,0.00019257,2]
[367226523,1750707692801,-460.0,0.00019257,2]
[367226524,1750707692811,-310.38168302,0.00019257,2]
[367226525,1750707692827,-149.61831698,0.00019257,2]
[367226526,1750707692836,-460.0,0.00019257,2]
[367226527,1750707692846,-460.0,0.00019257,2]
[367226528,1750707692855,-460.0,0.00019257,2]
[367226529,1750707692866,-460.0,0.00019257,2]
[367226530,1750707692875,-460.0,0.00019257,2]
[367226531,1750707692885,-460.0,0.00019257,2]
[367226532,1750707692894,-460.0,0.00019257,2]
[367226533,1750707692904,-460.0,0.00019257,2]
[367226534,1750707692913,-460.0,0.00019257,2]
[367226535,1750707692922,-460.0,0.00019257,2]
[367226536,1750707692932,-521.96,0.00019257,2]
[367226537,1750707692942,-460.0,0.00019257,2]
[367226538,1750707692955,-460.0,0.00019257,2]
[367226539,1750707692965,-460.0,0.00019257,2]
[367226540,1750707692975,-460.0,0.00019257,2]
[367226541,1750707692984,-460.0,0.00019257,2]
[367226542,1750707693002,-460.0,0.00019257,2]
[367226543,1750707693014,-460.0,0.00019257,2]
[367226544,1750707693025,-460.0,0.00019257,2]
[367226545,1750707693036,-460.03798116,0.00019257,2]
[367226546,1750707693047,-460.0,0.00019257,2]
[367226547,1750707693057,-519.63,0.00019257,2]
[367226548,1750707693067,-308.75370186,0.00019257,2]
[367226549,1750707693084,-197.58629814,0.00019257,2]
[367226550,1750707693095,-460.0,0.00019257,2]
[367226551,1750707693106,-460.0,0.00019257,2]
[367226552,1750707693116,-460.0,0.00019257,2]
[367226553,1750707693126,-460.0,0.00019257,2]
[367226554,1750707693136,-460.0,0.00019257,2]
[367226555,1750707693146,-460.0,0.00019257,2]
[367226556,1750707693156,-529.96,0.00019257,2]
[367226557,1750707693166,-460.0,0.00019257,2]
[367226558,1750707693176,-460.0,0.00019257,2]
[367226559,1750707693186,-460.0,0.00019257,2]
[367226560,1750707693196,-460.0,0.00019257,2]
[367226561,1750707693207,-460.0,0.00019257,2]
[367226562,1750707693217,-460.0,0.00019257,2]
[367226563,1750707693228,-460.0,0.00019257,2]
[367226564,1750707693238,-460.0,0.00019257,2]
[367226565,1750707693247,-460.0,0.00019257,2]
[367226566,1750707693257,-460.0,0.00019257,2]
[367226567,1750707693268,-460.0,0.00019257,2]
[367226568,1750707693278,-460.0,0.00019257,2]
[367226569,1750707693288,-460.0,0.00019257,2]
[367226570,1750707693297,-460.0,0.00019257,2]
[367226571,1750707693307,-460.0,0.00019257,2]
[367226572,1750707693318,-312.45370186,0.00019257,2]
[367226573,1750707693344,-147.54629814,0.00019257,2]
[367226574,1750707693354,-460.0,0.00019257,2]
[367226575,1750707693364,-460.0,0.00019257,2]
[367226576,1750707693374,-460.0,0.00019257,2]
[367226577,1750707693385,-500.0,0.00019257,2]
[367226578,1750707693396,-500.0,0.00019257,2]
[367226579,1750707693405,-572.57179302,0.00019257,2]
[367226580,1750707693415,-759.26,0.00019257,2]
[367226581,1750707693425,-460.0,0.00019257,2]
[367226582,1750707693437,-460.0,0.00019257,2]
[367226583,1750707693447,-460.0,0.00019257,2]
[367226584,1750707693456,-460.0,0.00019257,2]
[367226585,1750707693466,-460.0,0.00019257,2]
[367226586,1750707693477,-460.0,0.00019257,2]
[367226587,1750707693487,-460.2241421,0.00019257,2]
[367226588,1750707693497,-406.24430098,0.00019257,2]
[367226589,1750707693506,-460.0,0.00019257,2]
[367226590,1750707693515,-460.0,0.00019257,2]
[367226591,1750707693525,-460.0,0.00019257,2]
[367226592,1750707693535,-460.0,0.00019257,2]
[367226593,1750707693545,-460.0,0.00019257,2]
[367226594,1750707693555,-460.0,0.00019257,2]
[367226595,1750707693564,-454.15346576,0.00019257,2]
[367226596,1750707693580,-5.84653424,0.00019257,2]
[367226597,1750707693590,-460.0,0.00019257,2]
[367226598,1750707693601,-460.0,0.00019257,2]
[367226599,1750707693610,-460.0,0.00019257,2]
[367226600,1750707693620,-460.0,0.00019257,2]
[367226601,1750707693631,-460.0,0.00019257,2]
[367226602,1750707693641,-460.0,0.00019257,2]
[367226603,1750707693651,-460.0,0.00019257,2]
[367226604,1750707693661,-460.0,0.00019257,2]
[367226605,1750707693671,-460.0,0.00019257,2]
[367226606,1750707693681,-460.0,0.00019257,2]
[367226607,1750707693691,-460.0,0.00019257,2]
[367226608,1750707693701,-579.61225319,0.00019257,2]
[367226609,1750707693711,-460.0,0.00019257,2]
[367226610,1750707693721,-460.0,0.00019257,2]
[367226611,1750707693731,-460.19304519,0.00019257,2]
[367226612,1750707693741,-460.0,0.00019257,2]
[367226613,1750707693751,-489.21579116,0.00019257,2]
[367226614,1750707693760,-460.0,0.00019257,2]
[367226615,1750707693770,-460.0,0.00019257,2]
[367226616,1750707693780,-460.0,0.00019257,2]
[367226617,1750707693790,-460.0,0.00019257,2]
[367226618,1750707693800,-460.0,0.00019257,2]
[367226619,1750707693810,-425.13237622,0.00019257,2]
[367226620,1750707693831,-34.86762378,0.00019257,2]
[367226621,1750707693841,-460.0,0.00019257,2]
[367226622,1750707693853,-460.0,0.00019257,2]
[367226623,1750707693863,-460.0,0.00019257,2]
[367226624,1750707693872,-460.0,0.00019257,2]
[367226625,1750707693882,-544.51,0.00019257,2]
[367226626,1750707693892,-460.0,0.00019257,2]
[367226627,1750707693902,-460.0,0.00019257,2]
[367226628,1750707693912,-460.0,0.00019257,2]
[367226629,1750707693922,-460.0,0.00019257,2]
[367226630,1750707693931,-445.17769702,0.00019257,2]
[367226631,1750707693941,-460.0,0.00019257,2]
[367226632,1750707693954,-460.0,0.00019257,2]
[367226633,1750707693964,-460.0,0.00019257,2]
[367226634,1750707693974,-460.0,0.00019257,2]
[367226635,1750707693984,-460.0,0.00019257,2]
[367226636,1750707693995,-460.0,0.00019257,2]
[367226637,1750707694005,-460.0,0.00019257,2]
[367226638,1750707694015,-460.0,0.00019257,2]
[367226639,1750707694025,-460.0,0.00019257,2]
[367226640,1750707694037,-468.97,0.00019257,2]
[367226641,1750707694047,-460.0,0.00019257,2]
[367226642,1750707694056,-460.0,0.00019257,2]
[367226643,1750707694066,-460.0,0.00019257,2]
[367226644,1750707694076,-6.4746792,0.00019257,2]
[367226645,1750707694095,-453.5253208,0.00019257,2]
[367226646,1750707694105,-460.0,0.00019257,2]
[367226647,1750707694115,-460.0,0.00019257,2]
[367226648,1750707694125,-460.0,0.00019257,2]
[367226649,1750707694135,-460.0,0.00019257,2]
[367226650,1750707694145,-460.0,0.00019257,2]
[367226651,1750707694155,-466.18,0.00019257,2]
[367226652,1750707694165,-460.0,0.00019257,2]
[367226653,1750707694174,-460.0,0.00019257,2]
[367226654,1750707694184,-460.0,0.00019257,2]
[367226655,1750707694193,-460.0,0.00019257,2]
[367226656,1750707694203,-460.0,0.00019257,2]
[367226657,1750707694213,-460.0,0.00019257,2]
[367226658,1750707694223,-460.0,0.00019257,2]
[367226659,1750707694232,-460.0,0.00019257,2]
[367226660,1750707694242,-460.0,0.00019257,2]
[367226661,1750707694251,-543.33112431,0.00019257,2]
[367226662,1750707694261,-460.0,0.00019257,2]
[367226663,1750707694271,-460.0,0.00019257,2]
[367226664,1750707694281,-460.0,0.00019257,2]
[367226665,1750707694290,-460.0,0.00019257,2]
[367226666,1750707694300,-460.0,0.00019257,2]
[367226667,1750707694309,-460.0,0.00019257,2]
[367226668,1750707694319,-36.96355489,0.00019257,2]
[367226669,1750707694338,-423.03644511,0.00019257,2]
[367226670,1750707694348,-460.0,0.00019257,2]
[367226671,1750707694358,-460.0,0.00019257,2]
[367226672,1750707694367,-460.69810951,0.00019257,2]
[367226673,1750707694377,-460.0,0.00019257,2]
[367226674,1750707694386,-300.0,0.00019257,2]
[367226675,1750707694395,-460.0,0.00019257,2]
[367226676,1750707694405,-460.0,0.00019257,2]
[367226677,1750707694415,-460.0,0.00019257,2]
[367226678,1750707694425,-500.0,0.00019257,2]
[367226679,1750707694435,-460.0,0.00019257,2]
[367226680,1750707694445,-603.62,0.00019257,2]
[367226681,1750707694454,-460.0,0.00019257,2]
[367226682,1750707694464,-460.0,0.00019257,2]
[367226683,1750707694473,-530.08,0.00019257,2]
[367226684,1750707694482,-644.99,0.00019257,2]
[367226685,1750707694491,-460.0,0.00019257,2]
[367226686,1750707694500,-460.0,0.00019257,2]
[367226687,1750707694509,-460.0,0.00019257,2]
[367226688,1750707694519,-521.23,0.00019257,2]
[367226689,1750707694528,-798.35,0.00019257,2]
[367226690,1750707694537,-397.99544538,0.00019257,2]
[367226692,1750707729344,5000.0,0.0001911,2]
[367226693,1750707742504,-300.0,0.00019168,2]
[367226694,1750707744198,272.550741,0.00013699,2]
[367226695,1750707745863,-200.0,0.00019168,2]
[367226696,1750707745891,-5.84433458,0.00019168,2]
[367226697,1750707746354,5000.0,0.0001911,2]
[367226698,1750707747014,193.337724,0.00018593,2]
[367226699,1750707747372,231.876075,0.00018678,2]
[367226700,1750707747741,256.37300458,0.00018679,2]
[367226702,1750707752504,-182.84925607,0.00019168,2]
[367226703,1750707761802,5000.0,0.0001911,2]
[367226704,1750707762058,10000.0,0.00026466,60]
[367226705,1750707764910,-460.0,0.00019252,2]
[367226706,1750707764945,-1428.32533333,0.00019253,2]
[367226707,1750707765072,-1061.95466667,0.00019253,2]
[367226708,1750707765156,-224.41599999,0.00019253,2]
[367226709,1750707765207,-235.58400001,0.00019253,2]
[367226710,1750707765238,-460.0,0.00019253,2]
[367226711,1750707765267,-460.0,0.00019253,2]
[367226712,1750707765340,-37.15733331,0.00019255,2]
[367226713,1750707765372,-262.84266669,0.00019255,2]
[367226714,1750707765403,-500.0,0.00019255,2]
[367226715,1750707765432,-322.63999995,0.00019255,2]
[367226716,1750707765506,-177.36000005,0.00019255,2]
[367226717,1750707765535,-500.0,0.00019255,2]
[367226718,1750707765566,-493.60533323,0.00019255,2]
[367226719,1750707765678,-44.33533333,0.00019253,2]
[367226720,1750707765709,-139.41933349,0.00019253,2]
[367226721,1750707765732,-2120.23533318,0.00019253,2]
[367226722,1750707765742,-6.39466677,0.00019255,2]
[367226723,1750707765751,-177.36000005,0.00019255,2]
[367226724,1750707765789,-322.63999995,0.00019255,2]
[367226725,1750707765819,-500.0,0.00019255,2]
[367226726,1750707765850,-203.04533343,0.00019255,2]
[367226727,1750707765909,-296.95466657,0.00019255,2]
[367226728,1750707765943,-500.0,0.00019255,2]
[367226729,1750707765975,-500.0,0.00019255,2]
[367226730,1750707766027,-348.32533333,0.00019255,2]
[367226731,1750707766061,-151.67466667,0.00019255,2]
[367226732,1750707766091,-500.0,0.00019255,2]
[367226733,1750707766120,-500.0,0.00019255,2]
[367226734,1750707766185,-44.97599999,0.00019255,2]
[367226735,1750707766225,-455.02400001,0.00019255,2]
[367226736,1750707766254,-500.0,0.00019255,2]
[367226737,1750707766302,-438.27733331,0.00019255,2]
[367226738,1750707766334,-61.72266669,0.00019255,2]
[367226739,1750707766363,-500.0,0.00019255,2]
[367226740,1750707766392,-500.0,0.00019255,2]
[367226741,1750707766464,-224.87999995,0.00019255,2]
[367226742,1750707766501,-275.12000005,0.00019255,2]
[367226743,1750707766529,-355.0561213,0.00019255,2]
[367226744,1750707766558,-500.0,0.00019255,2]
[367226745,1750707766637,-500.0,0.00019255,2]
[367226746,1750707766667,-500.0,0.00019255,2]
[367226747,1750707766695,-157.49217114,0.00019255,2]
[367226748,1750707766796,-33.34099105,0.00019255,2]
[367226749,1750707766826,-500.0,0.00019255,2]
[367226750,1750707766856,-500.0,0.00019255,2]
[367226751,1750707766945,-500.0,0.00019255,2]
[367226752,1750707766977,-500.0,0.00019255,2]
[367226753,1750707767006,-171.13276982,0.00019255,2]
[367226754,1750707767131,-500.0,0.00019255,2]
[367226755,1750707767163,-500.0,0.00019255,2]
[367226756,1750707767257,-500.0,0.00019255,2]
[367226757,1750707767286,-500.0,0.00019255,2]
[367226758,1750707767389,-500.0,0.00019255,2]
[367226759,1750707767419,-273.95768871,0.00019255,2]
[367226760,1750707767448,-172.55813321,0.00019255,2]
[367226761,1750707767529,-250.13484474,0.00019255,2]
[367226762,1750707767561,-249.86515526,0.00019255,2]
[367226763,1750707767588,-500.0,0.00019255,2]
[367226764,1750707767643,-24.09253345,0.00019256,2]
[367226765,1750707767668,-172.55813321,0.00019256,2]
[367226766,1750707767700,-988.69933334,0.00019256,2]
[367226767,1750707767762,-216.45951141,0.00019256,2]
[367226768,1750707767931,-848.59502281,0.00019256,2]
[367226769,1750707767954,-988.69933334,0.00019256,2]
[367226770,1750707767991,-915.31613244,0.00019256,2]
[367226771,1750707768048,-686.52,0.00019256,2]
[367226772,1750707768079,-285.37533333,0.00019256,2]
[367226773,1750707768120,-404.53466667,0.00019256,2]
[367226774,1750707768130,-427.50586754,0.00019256,2]
[367226775,1750707768157,-32.49413246,0.00019256,2]
[367226776,1750707768166,-460.0,0.00019256,2]
[367226777,1750707768176,-422.82199998,0.00019256,2]
[367226778,1750707768209,-37.17800002,0.00019256,2]
[367226779,1750707768238,-460.0,0.00019256,2]
[367226780,1750707768268,-27.91933329,0.00019256,2]
[367226781,1750707768313,-686.52,0.00019256,2]
[367226782,1750707768327,-611.61066671,0.00019256,2]
[367226783,1750707768337,-78.29933329,0.00019256,2]
[367226784,1750707768369,-869.22066671,0.00019256,2]
[367226785,1750707768398,-62.00455462,0.00019257,2]
[367226786,1750707768430,-25.87489067,0.00019257,2]
[367226787,1750707768487,-434.12510933,0.00019257,2]
[367226788,1750707768516,-460.0,0.00019257,2]
[367226789,1750707768548,-100.07511467,0.00019257,2]
[367226790,1750707768648,-359.92488533,0.00019257,2]
[367226791,1750707768680,-460.0,0.00019257,2]
[367226792,1750707768710,-248.47556267,0.00019257,2]
[367226793,1750707768793,-211.52443733,0.00019257,2]
[367226794,1750707768803,-11.22522133,0.00019257,2]
[367226795,1750707768822,-434.12510933,0.00019257,2]
[367226796,1750707768854,-101.19966934,0.00019257,2]
[367226797,1750707768884,-772.22,0.00019257,2]
[367226798,1750707768914,-141.48599465,0.00019257,2]
[367226799,1750707769009,-318.51400535,0.00019257,2]
[367226800,1750707769041,-460.0,0.00019257,2]
[367226801,1750707769070,-326.04732263,0.00019257,2]
[367226802,1750707769234,-80.45789336,0.00019257,2]
[367226803,1750707769272,-58.74478401,0.00019257,2]
[367226804,1750707769302,-889.87,0.00019257,2]
[367226805,1750707769370,-384.80488533,0.00019257,2]
[367226806,1750707769393,-99.77166879,0.00019257,2]
[367226807,1750707769402,-218.74233656,0.00019257,2]
[367226808,1750707769416,-241.25766344,0.00019257,2]
[367226809,1750707769426,-218.74233656,0.00019257,2]
[367226810,1750707769443,-241.25766344,0.00019257,2]
[367226811,1750707769452,-223.99233656,0.00019257,2]
[367226812,1750707769489,10000.0,0.00026466,60]
[367226813,1750707769507,-58.74478401,0.00019257,2]
[367226814,1750707769524,-177.26287943,0.00019257,2]
[367226815,1750707769534,-460.0,0.00019257,2]
[367226816,1750707769543,-252.60712057,0.00019257,2]
[367226817,1750707769556,-207.39287943,0.00019257,2]
[367226818,1750707769566,-243.70288588,0.00019257,2]
[367226819,1750707772933,-169.09195517,0.00019157,2]
[367226820,1750707773995,10000.0,0.00026466,60]
[367226821,1750707776728,5000.0,0.0001911,2]
[367226822,1750707778047,10000.0,0.00026466,60]
[367226823,1750707792431,5000.0,0.0001911,2]
[367226824,1750707797914,10000.0,0.00026466,60]
[367226825,1750707798563,1270.67027979,0.000189,2]
[367226826,1750707807650,5000.0,0.0001911,2]
[367226827,1750707822781,5000.0,0.0001911,2]
[367226828,1750707823161,-372.5279776,0.00019178,2]
[367226829,1750707823192,-88.06737813,0.00019253,2]
[367226830,1750707823228,-412.14262187,0.00019253,2]
[367226831,1750707823353,-599.93333333,0.00019253,2]
[367226832,1750707823376,-133.46666667,0.00019253,2]
[367226833,1750707823481,-460.0,0.00019253,2]
[367226834,1750707823524,-413.33333333,0.00019253,2]
[367226835,1750707823812,-46.66666667,0.00019253,2]
[367226836,1750707823841,-460.0,0.00019253,2]
[367226837,1750707823901,-501.56,0.00019253,2]
[367226838,1750707823988,-319.99999999,0.00019253,2]
[367226839,1750707824005,-330.21333333,0.00019253,2]
[367226840,1750707824019,-761.34666668,0.00019253,2]
[367226841,1750707824029,-460.0,0.00019253,2]
[367226842,1750707824039,-111.98666665,0.00019253,2]
[367226843,1750707824064,-1333.33333333,0.00019253,2]
[367226844,1750707824174,-82.36000002,0.00019253,2]
[367226845,1750707824203,-528.98,0.00019256,2]
[367226846,1750707824437,-110.65333329,0.00019256,2]
[367226847,1750707824473,-189.34666671,0.00019256,2]
[367226848,1750707824503,-460.0,0.00019256,2]
[367226849,1750707824553,-535.95,0.00019256,2]
[367226850,1750707824623,-34.63999991,0.00019256,2]
[367226851,1750707824637,-261.43333333,0.00019256,2]
[367226852,1750707824669,-163.92666676,0.00019256,2]
[367226853,1750707824697,-364.19778981,0.00019256,2]
[367226854,1750707824760,-277.08442019,0.00019256,2]
[367226855,1750707824792,-247.62557981,0.00019256,2]
[367226856,1750707824821,-216.29711412,0.00019257,2]
[367226857,1750707824873,-405.48794547,0.00019257,2]
[367226858,1750707824944,-54.51205453,0.00019257,2]
[367226859,1750707824977,-460.0,0.00019257,2]
[367226860,1750707825006,-137.25602112,0.00019257,2]
[367226861,1750707825060,-29.79718203,0.00019257,2]
[367226862,1750707825092,-460.0,0.00019257,2]
[367226863,1750707825133,-413.33333333,0.00019257,2]
[367226864,1750707825275,-46.66666667,0.00019257,2]
[367226865,1750707825305,-460.0,0.00019257,2]
[367226866,1750707825356,-319.99999999,0.00019257,2]
[367226867,1750707825411,-140.00000001,0.00019257,2]
[367226868,1750707825441,-457.1969953,0.00019257,2]
[367226869,1750707825498,-138.93934271,0.00019257,2]
[367226870,1750707825559,-321.06065729,0.00019257,2]
[367226871,1750707825589,-231.21201875,0.00019257,2]
[367226872,1750707825628,-228.78798125,0.00019257,2]
[367226873,1750707825701,-460.0,0.00019257,2]
[367226874,1750707825740,-413.33333333,0.00019257,2]
[367226875,1750707825842,-46.66666667,0.00019257,2]
[367226876,1750707825873,-473.46,0.00019257,2]
[367226877,1750707825925,-293.07999999,0.00019257,2]
[367226878,1750707825975,-206.92000001,0.00019257,2]
[367226879,1750707826006,-459.49333331,0.00019257,2]
[367226880,1750707826046,-0.50666669,0.00019257,2]
[367226881,1750707826117,-376.56333333,0.00019257,2]
[367226882,1750707826140,-580.20666667,0.00019257,2]
[367226883,1750707826251,-460.0,0.00019257,2]
[367226884,1750707826290,-413.33333333,0.00019257,2]
[367226885,1750707826382,-73.6339976,0.00019257,2]
[367226886,1750707826410,-460.0,0.00019257,2]
[367226887,1750707826460,-266.06533813,0.00019257,2]
[367226888,1750707826536,-193.93466187,0.00019257,2]
[367226889,1750707826567,-460.0,0.00019257,2]
[367226890,1750707826615,-25.46400959,0.00019257,2]
[367226891,1750707826695,-434.53599041,0.00019257,2]
[367226892,1750707826725,-4.26135251,0.00019257,2]
[367226893,1750707826762,-455.73864749,0.00019257,2]
[367226894,1750707826838,-460.0,0.00019257,2]
[367226895,1750707826866,-157.31418918,0.00019257,2]
[367226896,1750707826918,-98.70495497,0.00019257,2]
[367226897,1750707826998,-361.29504503,0.00019257,2]
[367226898,1750707827038,-610.74324327,0.00019257,2]
[367226899,1750707827141,-119.13675673,0.00019257,2]
[367226900,1750707827169,-460.0,0.00019257,2]
[367226901,1750707827221,-175.05981987,0.00019257,2]
[367226902,1750707827275,-284.94018013,0.00019257,2]
[367226903,1750707827313,-763.45297307,0.00019258,2]
[367226904,1750707827448,-106.70702693,0.00019258,2]
[367226905,1750707827479,-491.52,0.00019258,2]
[367226906,1750707827740,-136.87927947,0.00019258,2]
[367226907,1750707836812,-210.16016635,0.0001916,2]
[367226908,1750707837846,2998.76289265,0.0001911,2]
[367226909,1750707860941,186.72856847,0.0001911,2]
[367226910,1750707868682,5000.0,0.0001911,2]
[367226911,1750707872411,-274.60883923,0.00019158,2]
[367226912,1750707876612,1377.38291675,0.000189,2]
[367226913,1750707883473,-500.0,0.00019158,2]
[367226914,1750707884121,-154.17563185,0.00019158,2]
[367226915,1750707884440,5000.0,0.0001911,2]